[Event "Titled Tuesday Blitz February 15 Late 2022"]
[White "Suder, Jakub"]
[Black "Kozak, Adam"]
[WhiteFideId "1195310"]
[BlackFideId "753246"]
[WhiteElo "2058"]
[BlackElo "2459"]
[Result "0-1"]
[Round "03"]
[TimeControl "180+1"]
[Date "2022.02.16"]
[WhiteClock "0:00:02"]
[BlackClock "0:00:17"]

1. d4 {[%clk 0:03:00]}  Nf6 {[%clk 0:02:59]} 2. c4 {[%clk 0:02:58]}  c5 {[%clk 0:02:56]} 3. d5 {[%clk 0:02:58]}  b5 {[%clk 0:02:56]} 4. Nf3 {[%clk 0:02:58]}  g6 {[%clk 0:02:54]} 5. Qc2 {[%clk 0:02:56]}  Bg7 {[%clk 0:02:54]} 6. e4 {[%clk 0:02:54]}  O-O {[%clk 0:02:54]} 7. cxb5 {[%clk 0:02:48]}  d6 {[%clk 0:02:18]} 8. Nc3 {[%clk 0:02:40]}  a6 {[%clk 0:01:55]} 9. a4 {[%clk 0:02:40]}  axb5 {[%clk 0:01:52]} 10. Bxb5 {[%clk 0:02:40]}  Na6 {[%clk 0:01:51]} 11. O-O {[%clk 0:02:32]}  Nb4 {[%clk 0:01:50]} 12. Qe2 {[%clk 0:02:31]}  Ba6 {[%clk 0:01:49]} 13. h3 {[%clk 0:02:21]}  Ne8 {[%clk 0:01:43]} 14. Bf4 {[%clk 0:02:15]}  Nc7 {[%clk 0:01:43]} 15. Bxa6 {[%clk 0:02:13]}  Rxa6 {[%clk 0:01:41]} 16. Rfd1 {[%clk 0:02:09]}  Qa8 {[%clk 0:01:40]} 17. Rac1 {[%clk 0:01:53]}  Rb6 {[%clk 0:01:38]} 18. Qc4 {[%clk 0:01:43]}  Nba6 {[%clk 0:01:33]} 19. Rd2 {[%clk 0:01:02]}  Rb4 {[%clk 0:01:28]} 20. Qe2 {[%clk 0:01:02]}  Rfb8 {[%clk 0:01:26]} 21. Bg5 {[%clk 0:00:54]}  Re8 {[%clk 0:01:12]} 22. e5 {[%clk 0:00:47]}  h6 {[%clk 0:00:39]} 23. Be3 {[%clk 0:00:42]}  dxe5 {[%clk 0:00:36]} 24. Nb5 {[%clk 0:00:25]}  Nxd5 {[%clk 0:00:29]} 25. Bxc5 {[%clk 0:00:24]}  Nxc5 {[%clk 0:00:28]} 26. Rxc5 {[%clk 0:00:24]}  Nf4 {[%clk 0:00:28]} 27. Qf1 {[%clk 0:00:20]}  Qxa4 {[%clk 0:00:25]} 28. Nc3 {[%clk 0:00:13]}  Qa7 {[%clk 0:00:24]} 29. Rc6 {[%clk 0:00:07]}  Qb7 {[%clk 0:00:24]} 30. Rc5 {[%clk 0:00:06]}  Rxb2 {[%clk 0:00:23]} 31. Rxb2 {[%clk 0:00:05]}  Qxb2 {[%clk 0:00:24]} 32. g3 {[%clk 0:00:05]}  Ne6 {[%clk 0:00:21]} 33. Rc4 {[%clk 0:00:06]}  Nd4 {[%clk 0:00:20]} 34. Nxd4 {[%clk 0:00:02]}  exd4 {[%clk 0:00:21]} 35. Ne4 {[%clk 0:00:02]}  Qb3 {[%clk 0:00:20]} 36. Rc7 {[%clk 0:00:02]}  Qd5 {[%clk 0:00:17]} 0-1


[Site "https://www.chess.com"]

[Event "Titled Tuesday Blitz February 15 Late 2022"]
[White "Sviridov, Valery"]
[Black "Al Hosani, Omran"]
[WhiteFideId "4120680"]
[BlackFideId "9308733"]
[WhiteElo "2454"]
[BlackElo "2246"]
[Result "1-0"]
[Round "03"]
[TimeControl "180+1"]
[Date "2022.02.15"]
[WhiteClock "0:00:12"]
[BlackClock "0:00:02"]

1. d4 {[%clk 0:01:38]}  Nf6 {[%clk 0:02:55]} 2. Nf3 {[%clk 0:01:36]}  e6 {[%clk 0:02:51]} 3. e3 {[%clk 0:01:35]}  d5 {[%clk 0:02:51]} 4. Nbd2 {[%clk 0:01:34]}  c5 {[%clk 0:02:52]} 5. c3 {[%clk 0:01:34]}  Be7 {[%clk 0:02:52]} 6. Bd3 {[%clk 0:01:35]}  O-O {[%clk 0:02:52]} 7. O-O {[%clk 0:01:36]}  b6 {[%clk 0:02:53]} 8. b3 {[%clk 0:01:33]}  Bb7 {[%clk 0:02:53]} 9. Bb2 {[%clk 0:01:34]}  Nbd7 {[%clk 0:02:53]} 10. Rc1 {[%clk 0:01:34]}  Rc8 {[%clk 0:02:53]} 11. Qe2 {[%clk 0:01:34]}  Re8 {[%clk 0:02:54]} 12. Ne5 {[%clk 0:01:34]}  Nxe5 {[%clk 0:02:53]} 13. dxe5 {[%clk 0:01:35]}  Nd7 {[%clk 0:02:54]} 14. f4 {[%clk 0:01:35]}  f5 {[%clk 0:02:52]} 15. c4 {[%clk 0:01:33]}  Nf8 {[%clk 0:02:51]} 16. Rfd1 {[%clk 0:01:31]}  Qc7 {[%clk 0:02:50]} 17. cxd5 {[%clk 0:01:27]}  Bxd5 {[%clk 0:02:49]} 18. e4 {[%clk 0:01:27]}  fxe4 {[%clk 0:02:46]} 19. Nxe4 {[%clk 0:01:28]}  Red8 {[%clk 0:02:45]} 20. Qg4 {[%clk 0:01:17]}  Bxe4 {[%clk 0:02:33]} 21. Bxe4 {[%clk 0:01:18]}  Rxd1+ {[%clk 0:02:33]} 22. Rxd1 {[%clk 0:01:18]}  Rd8 {[%clk 0:02:34]} 23. Rf1 {[%clk 0:01:18]}  Rd2 {[%clk 0:02:32]} 24. Bc3 {[%clk 0:01:16]}  Rxa2 {[%clk 0:02:31]} 25. f5 {[%clk 0:01:15]}  c4 {[%clk 0:02:19]} 26. b4 {[%clk 0:00:49]}  Ra3 {[%clk 0:01:44]} 27. f6 {[%clk 0:00:47]}  Bxf6 {[%clk 0:01:40]} 28. exf6 {[%clk 0:00:14]}  Rxc3 {[%clk 0:01:40]} 29. f7+ {[%clk 0:00:12]}  Kh8 {[%clk 0:01:39]} 30. Qh5 {[%clk 0:00:13]}  h6 {[%clk 0:00:48]} 31. Rf6 {[%clk 0:00:13]}  Rc1+ {[%clk 0:00:13]} 32. Kf2 {[%clk 0:00:13]}  Qf4+ {[%clk 0:00:02]} 33. Rxf4 {[%clk 0:00:12]} 1-0


[Site "https://www.chess.com"]

[Event "Titled Tuesday Blitz February 15 Late 2022"]
[White "Tang, Andrew"]
[Black "Kavyev, Ruslan"]
[WhiteFideId "2059630"]
[BlackFideId "34110981"]
[WhiteElo "2584"]
[BlackElo "2182"]
[Result "1-0"]
[Round "03"]
[TimeControl "180+1"]
[Date "2022.02.15"]
[WhiteClock "0:00:03"]
[BlackClock "0:00:06"]

1. d4 {[%clk 0:02:42]}  Nf6 {[%clk 0:02:59]} 2. c4 {[%clk 0:02:41]}  g6 {[%clk 0:03:00]} 3. f3 {[%clk 0:02:41]}  Bg7 {[%clk 0:03:00]} 4. e4 {[%clk 0:02:42]}  d6 {[%clk 0:02:59]} 5. Nc3 {[%clk 0:02:42]}  O-O {[%clk 0:03:00]} 6. Nge2 {[%clk 0:02:43]}  Nc6 {[%clk 0:03:00]} 7. Be3 {[%clk 0:02:43]}  a6 {[%clk 0:03:00]} 8. Rb1 {[%clk 0:02:41]}  Na5 {[%clk 0:02:41]} 9. Ng3 {[%clk 0:02:22]}  c5 {[%clk 0:02:28]} 10. dxc5 {[%clk 0:02:08]}  Be6 {[%clk 0:02:22]} 11. Nd5 {[%clk 0:01:48]}  dxc5 {[%clk 0:02:17]} 12. Bxc5 {[%clk 0:01:49]}  Bxd5 {[%clk 0:02:13]} 13. cxd5 {[%clk 0:01:48]}  Rc8 {[%clk 0:02:12]} 14. b4 {[%clk 0:01:04]}  b6 {[%clk 0:02:11]} 15. Bxa6 {[%clk 0:01:00]}  Ra8 {[%clk 0:01:54]} 16. Bd4 {[%clk 0:00:58]}  Rxa6 {[%clk 0:01:47]} 17. bxa5 {[%clk 0:00:58]}  bxa5 {[%clk 0:01:24]} 18. O-O {[%clk 0:00:33]}  h5 {[%clk 0:01:15]} 19. Qe2 {[%clk 0:00:31]}  Ra8 {[%clk 0:01:11]} 20. Rfd1 {[%clk 0:00:31]}  h4 {[%clk 0:01:10]} 21. Nf1 {[%clk 0:00:30]}  h3 {[%clk 0:01:03]} 22. g4 {[%clk 0:00:27]}  Qd7 {[%clk 0:00:43]} 23. Ne3 {[%clk 0:00:20]}  Rfc8 {[%clk 0:00:42]} 24. Nc4 {[%clk 0:00:15]}  Rxc4 {[%clk 0:00:23]} 25. Qxc4 {[%clk 0:00:13]}  Nxg4 {[%clk 0:00:22]} 26. Bxg7 {[%clk 0:00:09]}  Kxg7 {[%clk 0:00:17]} 27. Qd4+ {[%clk 0:00:08]}  f6 {[%clk 0:00:14]} 28. Rb3 {[%clk 0:00:03]}  Ne5 {[%clk 0:00:12]} 29. f4 {[%clk 0:00:03]}  Ng4 {[%clk 0:00:07]} 30. Rg3 {[%clk 0:00:03]}  Rc8 {[%clk 0:00:06]} 31. f5 {[%clk 0:00:02]}  Rc2 {[%clk 0:00:06]} 32. Rxg4 {[%clk 0:00:02]}  g5 {[%clk 0:00:06]} 33. Rxg5+ {[%clk 0:00:03]}  Kf7 {[%clk 0:00:07]} 34. Rg3 {[%clk 0:00:03]}  Qa4 {[%clk 0:00:06]} 35. Qxa4 {[%clk 0:00:03]} 1-0


[Site "https://www.chess.com"]

[Event "Titled Tuesday Blitz February 15 Late 2022"]
[White "Tasev, Dejan"]
[Black "Qashashvili, Alexandre"]
[WhiteFideId "936618"]
[BlackFideId "13600842"]
[WhiteElo "2253"]
[BlackElo "2316"]
[Result "1-0"]
[Round "03"]
[TimeControl "180+1"]
[Date "2022.02.16"]
[WhiteClock "0:00:56"]
[BlackClock "0:01:12"]

1. e4 {[%clk 0:02:59]}  c6 {[%clk 0:02:55]} 2. d4 {[%clk 0:02:59]}  d5 {[%clk 0:02:55]} 3. Nc3 {[%clk 0:02:59]}  dxe4 {[%clk 0:02:55]} 4. Nxe4 {[%clk 0:02:59]}  Nd7 {[%clk 0:02:55]} 5. Nf3 {[%clk 0:02:59]}  Ngf6 {[%clk 0:02:56]} 6. Ng3 {[%clk 0:02:58]}  Nb6 {[%clk 0:02:56]} 7. h3 {[%clk 0:02:57]}  g6 {[%clk 0:02:55]} 8. Be2 {[%clk 0:02:40]}  Bg7 {[%clk 0:02:54]} 9. O-O {[%clk 0:02:40]}  h5 {[%clk 0:02:54]} 10. Bg5 {[%clk 0:02:37]}  O-O {[%clk 0:02:53]} 11. Qd2 {[%clk 0:02:36]}  Be6 {[%clk 0:02:38]} 12. b3 {[%clk 0:02:31]}  Rc8 {[%clk 0:02:36]} 13. c4 {[%clk 0:02:29]}  Qd7 {[%clk 0:02:28]} 14. Ne5 {[%clk 0:02:22]}  Qe8 {[%clk 0:02:28]} 15. Bh6 {[%clk 0:02:11]}  Nfd7 {[%clk 0:02:26]} 16. Bxg7 {[%clk 0:02:10]}  Kxg7 {[%clk 0:02:27]} 17. Nf3 {[%clk 0:02:07]}  Nf6 {[%clk 0:02:24]} 18. Rad1 {[%clk 0:02:01]}  Rd8 {[%clk 0:02:24]} 19. Qa5 {[%clk 0:01:58]}  Nc8 {[%clk 0:02:21]} 20. Ng5 {[%clk 0:01:51]}  Bd7 {[%clk 0:02:13]} 21. Qe5 {[%clk 0:01:46]}  Kg8 {[%clk 0:02:03]} 22. Rfe1 {[%clk 0:01:42]}  Nd6 {[%clk 0:01:47]} 23. Bd3 {[%clk 0:01:36]}  Bc8 {[%clk 0:01:32]} 24. Nf3 {[%clk 0:01:15]}  Qd7 {[%clk 0:01:20]} 25. Qg5 {[%clk 0:01:06]}  Nh7 {[%clk 0:01:18]} 26. Qh6 {[%clk 0:01:01]}  Nf5 {[%clk 0:01:12]} 27. Bxf5 {[%clk 0:00:58]}  gxf5 {[%clk 0:01:12]} 28. Nxh5 {[%clk 0:00:56]} 1-0


[Site "https://www.chess.com"]

[Event "Titled Tuesday Blitz February 15 Late 2022"]
[White "Timofeev, Artyom"]
[Black "Dronavalli, Harika"]
[WhiteFideId "4140419"]
[BlackFideId "5015197"]
[WhiteElo "2583"]
[BlackElo "2382"]
[Result "0-1"]
[Round "03"]
[TimeControl "180+1"]
[Date "2022.02.15"]
[WhiteClock "0:00:34"]
[BlackClock "0:00:47"]

1. d4 {[%clk 0:03:00]}  Nf6 {[%clk 0:02:59]} 2. c4 {[%clk 0:03:00]}  e6 {[%clk 0:02:59]} 3. Nc3 {[%clk 0:03:00]}  Bb4 {[%clk 0:02:59]} 4. a3 {[%clk 0:03:00]}  Bxc3+ {[%clk 0:02:59]} 5. bxc3 {[%clk 0:03:01]}  c5 {[%clk 0:02:57]} 6. f3 {[%clk 0:02:56]}  Nc6 {[%clk 0:02:53]} 7. e4 {[%clk 0:02:54]}  d6 {[%clk 0:02:53]} 8. Be3 {[%clk 0:02:51]}  b6 {[%clk 0:02:47]} 9. Bd3 {[%clk 0:02:48]}  Na5 {[%clk 0:02:47]} 10. Nh3 {[%clk 0:02:41]}  Ba6 {[%clk 0:02:42]} 11. Qe2 {[%clk 0:02:40]}  Nd7 {[%clk 0:02:34]} 12. O-O {[%clk 0:02:37]}  Qe7 {[%clk 0:02:32]} 13. f4 {[%clk 0:02:35]}  e5 {[%clk 0:02:20]} 14. fxe5 {[%clk 0:02:19]}  dxe5 {[%clk 0:02:20]} 15. d5 {[%clk 0:02:17]}  f6 {[%clk 0:02:20]} 16. Nf2 {[%clk 0:02:09]}  Nf8 {[%clk 0:02:07]} 17. Ng4 {[%clk 0:02:07]}  h5 {[%clk 0:02:00]} 18. Nf2 {[%clk 0:02:06]}  Ng6 {[%clk 0:02:00]} 19. g3 {[%clk 0:01:55]}  Qd7 {[%clk 0:01:59]} 20. h4 {[%clk 0:01:52]}  Ne7 {[%clk 0:01:56]} 21. Kh2 {[%clk 0:01:51]}  Nc8 {[%clk 0:01:56]} 22. Nd1 {[%clk 0:01:40]}  Nd6 {[%clk 0:01:56]} 23. Nb2 {[%clk 0:01:40]}  O-O-O {[%clk 0:01:54]} 24. Rae1 {[%clk 0:01:26]}  Kb7 {[%clk 0:01:49]} 25. Bd2 {[%clk 0:01:22]}  Ka8 {[%clk 0:01:46]} 26. Bc1 {[%clk 0:01:22]}  Rc8 {[%clk 0:01:44]} 27. Bd2 {[%clk 0:01:22]}  Rcf8 {[%clk 0:01:39]} 28. Bc1 {[%clk 0:01:21]}  Rfg8 {[%clk 0:01:39]} 29. Bd2 {[%clk 0:01:21]}  Bc8 {[%clk 0:01:34]} 30. Nd1 {[%clk 0:01:18]}  Qh3+ {[%clk 0:01:32]} 31. Kg1 {[%clk 0:01:19]}  Qxg3+ {[%clk 0:01:32]} 32. Kh1 {[%clk 0:01:18]}  Qxh4+ {[%clk 0:01:33]} 33. Kg1 {[%clk 0:01:19]}  Qg3+ {[%clk 0:01:27]} 34. Kh1 {[%clk 0:01:19]}  Bg4 {[%clk 0:01:27]} 35. Qe3 {[%clk 0:01:15]}  Qh4+ {[%clk 0:01:24]} 36. Kg1 {[%clk 0:01:11]}  Ndxc4 {[%clk 0:01:21]} 37. Qf2 {[%clk 0:01:07]}  Qxf2+ {[%clk 0:01:18]} 38. Rxf2 {[%clk 0:01:07]}  Bxd1 {[%clk 0:01:19]} 39. Rxd1 {[%clk 0:01:07]}  Nb2 {[%clk 0:01:19]} 40. Bc2 {[%clk 0:01:04]}  Nxd1 {[%clk 0:01:19]} 41. Bxd1 {[%clk 0:01:04]}  h4 {[%clk 0:01:19]} 42. Kg2 {[%clk 0:01:04]}  h3+ {[%clk 0:01:19]} 43. Kh2 {[%clk 0:01:04]}  Rh4 {[%clk 0:01:14]} 44. Bf3 {[%clk 0:01:02]}  Nc4 {[%clk 0:01:14]} 45. Bc1 {[%clk 0:01:02]}  Nd6 {[%clk 0:01:11]} 46. Re2 {[%clk 0:01:02]}  g5 {[%clk 0:01:11]} 47. Kg3 {[%clk 0:01:00]}  Rgh8 {[%clk 0:01:09]} 48. Kh2 {[%clk 0:00:51]}  Kb7 {[%clk 0:01:03]} 49. Bd2 {[%clk 0:00:48]}  Nc4 {[%clk 0:01:02]} 50. Bc1 {[%clk 0:00:48]}  Rg8 {[%clk 0:01:00]} 51. Kg3 {[%clk 0:00:47]}  Ka6 {[%clk 0:00:55]} 52. Rh2 {[%clk 0:00:46]}  Nd6 {[%clk 0:00:55]} 53. Re2 {[%clk 0:00:45]}  h2 {[%clk 0:00:52]} 54. Rxh2 {[%clk 0:00:43]}  Nxe4+ {[%clk 0:00:51]} 55. Bxe4 {[%clk 0:00:43]}  Rxe4 {[%clk 0:00:52]} 56. Rh6 {[%clk 0:00:44]}  Rd8 {[%clk 0:00:51]} 57. Rxf6 {[%clk 0:00:40]}  Rxd5 {[%clk 0:00:52]} 58. Bxg5 {[%clk 0:00:40]}  Rd3+ {[%clk 0:00:52]} 59. Kf2 {[%clk 0:00:41]}  Rxc3 {[%clk 0:00:52]} 60. Rf7 {[%clk 0:00:40]}  Rxa3 {[%clk 0:00:51]} 61. Rd7 {[%clk 0:00:36]}  Rc4 {[%clk 0:00:50]} 62. Ke2 {[%clk 0:00:35]}  Rc2+ {[%clk 0:00:50]} 63. Kd1 {[%clk 0:00:35]}  Rg2 {[%clk 0:00:49]} 64. Be3 {[%clk 0:00:35]}  Ra1+ {[%clk 0:00:48]} 65. Bc1 {[%clk 0:00:34]}  Rg1+ {[%clk 0:00:47]} 0-1


[Site "https://www.chess.com"]

[Event "Titled Tuesday Blitz February 15 Late 2022"]
[White "Titichoca Daza, Daniel"]
[Black "Ibarra Jerez, Jose Carlos"]
[WhiteFideId "3309550"]
[BlackFideId "2226332"]
[WhiteElo "1968"]
[BlackElo "2626"]
[Result "0-1"]
[Round "03"]
[TimeControl "180+1"]
[Date "2022.02.16"]
[WhiteClock "0:00:02"]
[BlackClock "0:00:56"]

1. e4 {[%clk 0:03:00]}  d5 {[%clk 0:02:51]} 2. exd5 {[%clk 0:02:59]}  Qxd5 {[%clk 0:02:51]} 3. Nc3 {[%clk 0:02:57]}  Qd6 {[%clk 0:02:51]} 4. d4 {[%clk 0:02:55]}  Nf6 {[%clk 0:02:51]} 5. h3 {[%clk 0:02:50]}  g6 {[%clk 0:02:51]} 6. g3 {[%clk 0:02:51]}  Bg7 {[%clk 0:02:50]} 7. Bg2 {[%clk 0:02:49]}  O-O {[%clk 0:02:49]} 8. Nge2 {[%clk 0:02:49]}  c5 {[%clk 0:02:43]} 9. O-O {[%clk 0:02:37]}  Rd8 {[%clk 0:02:39]} 10. Bf4 {[%clk 0:02:28]}  Qa6 {[%clk 0:02:38]} 11. Re1 {[%clk 0:02:13]}  cxd4 {[%clk 0:02:28]} 12. Nxd4 {[%clk 0:01:57]}  Nc6 {[%clk 0:02:25]} 13. Nxc6 {[%clk 0:01:44]}  Rxd1 {[%clk 0:02:19]} 14. Nxe7+ {[%clk 0:01:18]}  Kh8 {[%clk 0:02:18]} 15. Raxd1 {[%clk 0:01:18]}  Be6 {[%clk 0:02:18]} 16. Rd6 {[%clk 0:01:03]}  Qa5 {[%clk 0:02:13]} 17. Bxb7 {[%clk 0:01:02]}  Re8 {[%clk 0:02:12]} 18. Nc6 {[%clk 0:00:36]}  Qh5 {[%clk 0:02:00]} 19. Nd4 {[%clk 0:00:33]}  Qxh3 {[%clk 0:01:52]} 20. Nxe6 {[%clk 0:00:33]}  Ng4 {[%clk 0:01:44]} 21. Bg2 {[%clk 0:00:27]}  Qh2+ {[%clk 0:01:44]} 22. Kf1 {[%clk 0:00:27]}  fxe6 {[%clk 0:01:43]} 23. Rdxe6 {[%clk 0:00:27]}  Rxe6 {[%clk 0:01:42]} 24. Rxe6 {[%clk 0:00:27]}  Bd4 {[%clk 0:01:39]} 25. Ne4 {[%clk 0:00:22]}  Qh5 {[%clk 0:01:39]} 26. Re7 {[%clk 0:00:16]}  Kg8 {[%clk 0:01:32]} 27. Ng5 {[%clk 0:00:15]}  Nf6 {[%clk 0:01:17]} 28. Bh3 {[%clk 0:00:11]}  Qd1+ {[%clk 0:01:12]} 29. Kg2 {[%clk 0:00:09]}  Ng4 {[%clk 0:01:10]} 30. Nxh7 {[%clk 0:00:02]}  Nxf2 {[%clk 0:00:56]} 31. Be6+ {[%clk 0:00:02]}  Kh8 {[%clk 0:00:56]} 0-1


[Site "https://www.chess.com"]

[Event "Titled Tuesday Blitz February 15 Late 2022"]
[White "Van Foreest, Jorden"]
[Black "Jaracz, Pawel"]
[WhiteFideId "1039784"]
[BlackFideId "1102222"]
[WhiteElo "2609"]
[BlackElo "2429"]
[Result "1-0"]
[Round "03"]
[TimeControl "180+1"]
[Date "2022.02.15"]
[WhiteClock "0:01:50"]
[BlackClock "0:00:14"]

1. e4 {[%clk 0:03:00]}  c6 {[%clk 0:02:58]} 2. Nc3 {[%clk 0:03:00]}  d5 {[%clk 0:02:58]} 3. d3 {[%clk 0:03:01]}  e5 {[%clk 0:02:54]} 4. f4 {[%clk 0:03:01]}  exf4 {[%clk 0:02:47]} 5. Bxf4 {[%clk 0:03:01]}  Bb4 {[%clk 0:02:44]} 6. Nf3 {[%clk 0:03:01]}  Ne7 {[%clk 0:02:42]} 7. Be2 {[%clk 0:02:56]}  dxe4 {[%clk 0:02:16]} 8. dxe4 {[%clk 0:02:55]}  Qxd1+ {[%clk 0:02:16]} 9. Rxd1 {[%clk 0:02:55]}  Be6 {[%clk 0:02:14]} 10. a3 {[%clk 0:02:55]}  Bxc3+ {[%clk 0:02:13]} 11. bxc3 {[%clk 0:02:56]}  Nd7 {[%clk 0:02:13]} 12. O-O {[%clk 0:02:54]}  Nb6 {[%clk 0:02:01]} 13. Rb1 {[%clk 0:02:33]}  O-O-O {[%clk 0:01:55]} 14. Nd4 {[%clk 0:02:33]}  Bc4 {[%clk 0:01:50]} 15. Bg4+ {[%clk 0:02:32]}  Nd7 {[%clk 0:01:40]} 16. Rfd1 {[%clk 0:02:24]}  h5 {[%clk 0:01:17]} 17. Bh3 {[%clk 0:02:24]}  Ng6 {[%clk 0:01:17]} 18. Bd6 {[%clk 0:02:12]}  Be6 {[%clk 0:00:27]} 19. Nxe6 {[%clk 0:02:05]}  fxe6 {[%clk 0:00:24]} 20. Bxe6 {[%clk 0:02:06]}  Rde8 {[%clk 0:00:25]} 21. Bf5 {[%clk 0:02:06]}  Ne7 {[%clk 0:00:20]} 22. Bh3 {[%clk 0:02:01]}  g5 {[%clk 0:00:18]} 23. Bxd7+ {[%clk 0:02:01]}  Kxd7 {[%clk 0:00:18]} 24. Rxb7+ {[%clk 0:02:01]}  Ke6 {[%clk 0:00:18]} 25. Bc5 {[%clk 0:02:00]}  Nc8 {[%clk 0:00:18]} 26. Rc7 {[%clk 0:02:00]}  Rd8 {[%clk 0:00:14]} 27. Rxc6+ {[%clk 0:02:00]}  Ke5 {[%clk 0:00:15]} 28. Bd4+ {[%clk 0:01:51]}  Kxe4 {[%clk 0:00:15]} 29. Re6+ {[%clk 0:01:51]}  Kf5 {[%clk 0:00:15]} 30. Rf6+ {[%clk 0:01:52]}  Kg4 {[%clk 0:00:14]} 31. h3+ {[%clk 0:01:50]}  Kh4 {[%clk 0:00:14]} 32. Bf2# {[%clk 0:01:50]} 1-0


[Site "https://www.chess.com"]

[Event "Titled Tuesday Blitz February 15 Late 2022"]
[White "Van den Dikkenberg, Erik"]
[Black "Bugayev, Vladimir"]
[WhiteFideId "1005880"]
[BlackFideId "30901480"]
[WhiteElo "2118"]
[BlackElo "2415"]
[Result "0-1"]
[Round "03"]
[TimeControl "180+1"]
[Date "2022.02.16"]
[WhiteClock "0:00:04"]
[BlackClock "0:01:02"]

1. e4 {[%clk 0:03:00]}  c6 {[%clk 0:02:59]} 2. d4 {[%clk 0:03:00]}  d5 {[%clk 0:03:00]} 3. exd5 {[%clk 0:02:59]}  cxd5 {[%clk 0:03:00]} 4. Bd3 {[%clk 0:02:59]}  Nc6 {[%clk 0:03:00]} 5. c3 {[%clk 0:03:00]}  Nf6 {[%clk 0:03:01]} 6. Bf4 {[%clk 0:03:00]}  Bg4 {[%clk 0:03:00]} 7. Qb3 {[%clk 0:02:59]}  Qd7 {[%clk 0:03:00]} 8. Nd2 {[%clk 0:02:59]}  e6 {[%clk 0:03:01]} 9. Ngf3 {[%clk 0:02:57]}  Bd6 {[%clk 0:03:01]} 10. Bxd6 {[%clk 0:02:56]}  Qxd6 {[%clk 0:03:02]} 11. O-O {[%clk 0:02:56]}  O-O {[%clk 0:03:02]} 12. Rae1 {[%clk 0:02:55]}  Ne7 {[%clk 0:03:02]} 13. Ne5 {[%clk 0:02:50]}  Bf5 {[%clk 0:03:02]} 14. Ndf3 {[%clk 0:02:37]}  Bxd3 {[%clk 0:02:58]} 15. Nxd3 {[%clk 0:02:37]}  Ne4 {[%clk 0:02:58]} 16. Nfe5 {[%clk 0:02:29]}  Nd2 {[%clk 0:02:55]} 17. Qxb7 {[%clk 0:02:28]}  Nxf1 {[%clk 0:02:55]} 18. Kxf1 {[%clk 0:02:25]}  Rfb8 {[%clk 0:02:55]} 19. Qd7 {[%clk 0:01:48]}  Qxd7 {[%clk 0:02:54]} 20. Nxd7 {[%clk 0:01:48]}  Rd8 {[%clk 0:02:52]} 21. N7c5 {[%clk 0:01:45]}  Nf5 {[%clk 0:02:51]} 22. a4 {[%clk 0:01:38]}  Nd6 {[%clk 0:02:52]} 23. b4 {[%clk 0:01:30]}  Nc4 {[%clk 0:02:50]} 24. a5 {[%clk 0:01:27]}  Rab8 {[%clk 0:02:42]} 25. Ne5 {[%clk 0:01:22]}  Nxe5 {[%clk 0:02:37]} 26. Rxe5 {[%clk 0:01:21]}  Rd6 {[%clk 0:02:35]} 27. f4 {[%clk 0:01:18]}  f6 {[%clk 0:02:35]} 28. Rxe6 {[%clk 0:01:16]}  Rxe6 {[%clk 0:02:35]} 29. Nxe6 {[%clk 0:01:16]}  Re8 {[%clk 0:02:35]} 30. f5 {[%clk 0:01:10]}  g6 {[%clk 0:02:29]} 31. g4 {[%clk 0:01:10]}  gxf5 {[%clk 0:02:29]} 32. gxf5 {[%clk 0:01:10]}  Kf7 {[%clk 0:02:30]} 33. Kf2 {[%clk 0:01:10]}  Rg8 {[%clk 0:02:30]} 34. Nf4 {[%clk 0:01:07]}  Rg5 {[%clk 0:02:27]} 35. Ke3 {[%clk 0:00:58]}  Rxf5 {[%clk 0:02:27]} 36. b5 {[%clk 0:00:57]}  Rg5 {[%clk 0:02:20]} 37. b6 {[%clk 0:00:56]}  axb6 {[%clk 0:02:20]} 38. axb6 {[%clk 0:00:56]}  Rg8 {[%clk 0:02:13]} 39. Nxd5 {[%clk 0:00:55]}  Ke6 {[%clk 0:02:14]} 40. c4 {[%clk 0:00:55]}  Rg7 {[%clk 0:02:10]} 41. Kf4 {[%clk 0:00:40]}  h5 {[%clk 0:02:08]} 42. h4 {[%clk 0:00:31]}  Rb7 {[%clk 0:01:50]} 43. Ke4 {[%clk 0:00:27]}  Rg7 {[%clk 0:01:46]} 44. Nf4+ {[%clk 0:00:26]}  Kd6 {[%clk 0:01:44]} 45. c5+ {[%clk 0:00:22]}  Kc6 {[%clk 0:01:43]} 46. Nxh5 {[%clk 0:00:21]}  Rg4+ {[%clk 0:01:42]} 47. Kd3 {[%clk 0:00:16]}  f5 {[%clk 0:01:40]} 48. Nf6 {[%clk 0:00:11]}  Rxh4 {[%clk 0:01:38]} 49. Kc4 {[%clk 0:00:08]}  Rf4 {[%clk 0:01:28]} 50. Ne8 {[%clk 0:00:07]}  Rh4 {[%clk 0:01:27]} 51. Nf6 {[%clk 0:00:07]}  Rf4 {[%clk 0:01:27]} 52. Ne8 {[%clk 0:00:07]}  Re4 {[%clk 0:01:15]} 53. Nd6 {[%clk 0:00:07]}  Rf4 {[%clk 0:01:10]} 54. b7 {[%clk 0:00:07]}  Kc7 {[%clk 0:01:10]} 55. Kd5 {[%clk 0:00:07]}  Rf1 {[%clk 0:01:06]} 56. Ke5 {[%clk 0:00:06]}  f4 {[%clk 0:01:06]} 57. d5 {[%clk 0:00:05]}  f3 {[%clk 0:01:05]} 58. Ne4 {[%clk 0:00:05]}  Re1 {[%clk 0:01:04]} 59. d6+ {[%clk 0:00:05]}  Kxb7 {[%clk 0:01:04]} 60. d7 {[%clk 0:00:04]}  Kc7 {[%clk 0:01:04]} 61. c6 {[%clk 0:00:04]}  Rxe4+ {[%clk 0:01:03]} 62. Kxe4 {[%clk 0:00:03]}  f2 {[%clk 0:01:03]} 63. Kd5 {[%clk 0:00:03]}  f1=Q {[%clk 0:01:04]} 64. Ke6 {[%clk 0:00:04]}  Qe2+ {[%clk 0:01:03]} 65. Kf7 {[%clk 0:00:04]}  Qf3+ {[%clk 0:01:02]} 0-1


[Site "https://www.chess.com"]

[Event "Titled Tuesday Blitz February 15 Late 2022"]
[White "Vidit, Santosh Gujrathi"]
[Black "Wagner, Dennis"]
[WhiteFideId "5029465"]
[BlackFideId "24650684"]
[WhiteElo "2654"]
[BlackElo "2355"]
[Result "1-0"]
[Round "03"]
[TimeControl "180+1"]
[Date "2022.02.15"]
[WhiteClock "0:00:26"]
[BlackClock "0:00:06"]

1. Nf3 {[%clk 0:03:00]}  Nf6 {[%clk 0:02:59]} 2. g3 {[%clk 0:03:01]}  g6 {[%clk 0:02:58]} 3. Bg2 {[%clk 0:03:01]}  Bg7 {[%clk 0:02:59]} 4. d4 {[%clk 0:03:01]}  O-O {[%clk 0:02:58]} 5. c4 {[%clk 0:03:01]}  c6 {[%clk 0:02:58]} 6. O-O {[%clk 0:03:00]}  d5 {[%clk 0:02:59]} 7. Qb3 {[%clk 0:03:01]}  a5 {[%clk 0:02:58]} 8. Rd1 {[%clk 0:02:58]}  a4 {[%clk 0:02:56]} 9. Qb4 {[%clk 0:02:58]}  dxc4 {[%clk 0:02:54]} 10. Qxc4 {[%clk 0:02:58]}  Bf5 {[%clk 0:02:53]} 11. Bf4 {[%clk 0:02:51]}  Qa5 {[%clk 0:02:53]} 12. Qc1 {[%clk 0:02:40]}  Nbd7 {[%clk 0:02:51]} 13. Nbd2 {[%clk 0:02:39]}  Rfc8 {[%clk 0:02:23]} 14. a3 {[%clk 0:02:36]}  c5 {[%clk 0:02:17]} 15. Nc4 {[%clk 0:02:29]}  Qa6 {[%clk 0:02:17]} 16. d5 {[%clk 0:02:29]}  Be4 {[%clk 0:02:17]} 17. Nfe5 {[%clk 0:02:01]}  Bxg2 {[%clk 0:02:14]} 18. Kxg2 {[%clk 0:02:02]}  Nxe5 {[%clk 0:02:13]} 19. Bxe5 {[%clk 0:01:56]}  b5 {[%clk 0:02:14]} 20. Ne3 {[%clk 0:01:55]}  Qb7 {[%clk 0:02:11]} 21. f3 {[%clk 0:01:42]}  c4 {[%clk 0:02:09]} 22. Qc3 {[%clk 0:01:33]}  Rd8 {[%clk 0:02:09]} 23. d6 {[%clk 0:01:19]}  Ne4 {[%clk 0:01:59]} 24. Qd4 {[%clk 0:01:08]}  Rxd6 {[%clk 0:01:43]} 25. Nd5 {[%clk 0:01:08]}  Bxe5 {[%clk 0:01:16]} 26. Qxe4 {[%clk 0:00:52]}  Rb8 {[%clk 0:00:09]} 27. Qxe5 {[%clk 0:00:48]}  Re6 {[%clk 0:00:10]} 28. Qd4 {[%clk 0:00:36]}  Rxe2+ {[%clk 0:00:10]} 29. Kg1 {[%clk 0:00:35]}  f6 {[%clk 0:00:08]} 30. Re1 {[%clk 0:00:25]}  Rxe1+ {[%clk 0:00:06]} 31. Rxe1 {[%clk 0:00:26]} 1-0


[Site "https://www.chess.com"]